Cogmind - Beta 17 @@@ ROGUE MODE // 2026.08.03 @ 13:06:49 Player: Riddarn Result: Destroyed by Y-45 Defender with Beam Rifle Performance ------------- Evolutions (1) 500 Regions Visited (3) 600 Robots Destroyed (47) 235 Value Destroyed (1083) 1083 Prototype IDs (2) 40 Alien Tech Used (0) 0 Bonus (0) 0 TOTAL SCORE: 2458 Bonus ------- None Cogmind --------- Core Integrity 0/400 Matter 270/300 Energy 100/100 System Corruption 0% Temperature Cool (9) Movement Core (200) Ox3 Location -9/Materials Parts ------- > --- POWER (1) -------- (None) > --- PROPULSION (2) --- (None) > --- UTILITY (4) ------ Medium Storage Unit Improved Sensor Array Terrain Scan Processor > --- WEAPON (2) ------- (None) > --- INVENTORY (10) --- Light Treads Improved Aluminum Leg Improved Aluminum Leg Light Assault Rifle Mini Grenade Launcher Maul Peak State ------------ > --- POWER ------------ (None) > --- PROPULSION ------- Light Treads > --- UTILITY ---------- Medium Storage Unit Improved Sensor Array Improved Sensor Array Terrain Scan Processor > --- WEAPON ----------- EM Pulse Cannon EM Pulse Cannon > --- INVENTORY -------- Light Treads Improved Aluminum Leg Improved Aluminum Leg Light Assault Rifle Mini Grenade Launcher Maul [Rating: 17] Favorites ----------- Power Ion Engine Engine Ion Engine Propulsion Aluminum Leg Treads Light Treads Leg Aluminum Leg Utility Medium Storage Unit Device Improved Terrain Scanner Storage Medium Storage Unit Processor Targeting Computer Protection Light Armor Plating Weapon Light Assault Rifle Energy Gun Beam Rifle Energy Cannon EM Pulse Cannon Ballistic Gun Light Assault Rifle Ballistic Cannon Improved Light Cannon Launcher Mini Grenade Launcher Build | -11 -10 -10 -9 ------- Run | Yrd Mat Min Mat Slots Evolved 2 | . . . 2 Power . | . . . . Propulsion . | . . . . Utility 2 | . . . 2 Weapon . | . . . . Parts Attached 39 | 6 6 8 19 Power 6 | 1 1 2 2 Engine 6 | 1 1 2 2 Core . | . . . . Reactor . | . . . . Propulsion 12 | 2 1 4 5 Treads 1 | . . . 1 Leg 11 | 2 1 4 4 Wheel . | . . . . Hover . | . . . . Flight . | . . . . Utility 8 | 1 2 . 5 Device 3 | . . . 3 Storage 2 | 1 1 . . Processor 2 | . 1 . 1 Hackware . | . . . . Protection 1 | . . . 1 Artifact . | . . . . Weapon 13 | 2 2 2 7 Energy Gun 1 | . . . 1 Energy Cannon 2 | . . . 2 Ballistic Gun 8 | 2 2 2 2 Ballistic Cannon 1 | . . . 1 Launcher 1 | . . . 1 Special Weapon . | . . . . Impact Weapon . | . . . . Slashing Weapon . | . . . . Piercing Weapon . | . . . . Special Melee Weapon . | . . . . Unidentified Prototypes . | . . . . Parts Lost 14 | . 2 1 11 Power 3 | . 1 . 2 Propulsion 4 | . 1 1 2 Utility 3 | . . . 3 Weapon 4 | . . . 4 Highest Loss Streak 4 | . 2 1 4 To Critical Strikes . | . . . . Average Backups 8 | 2 7 9 8 Power . | . 1 1 . Propulsion 2 | 1 2 2 2 Utility . | . . 1 . Weapon 3 | . 3 4 4 Tool/Special . | . . . . Unused Backups 8 | . . 1 7 Power . | . . . . Propulsion 3 | . . . 3 Utility 1 | . . 1 . Weapon 4 | . . . 4 Tool/Special . | . . . . Average Slot Usage (%) 91 | . 88 99 89 Engine 11 | . 14 14 9 Leg 21 | . 21 27 17 Device 2 | . . . 6 Storage 12 | . 14 14 11 Processor 14 | . 9 14 19 Ballistic Gun 23 | . 28 28 17 Peak Build Rating 17 | 6 8 8 17 Average Rating 8 | 4 6 7 11 On Entrance 5 | . 6 7 8 Avg Prop Armor Cover (%) . | . . . . Naked Turns . | . . . . Heaviest Build 27 | 14 19 17 27 Greatest Support 26 | 20 20 20 26 Greatest Overweight (x) 5 | 1 1 1 5 Average Overweight (x) . | . . . . Largest Inventory Capacity 10 | 8 10 10 10 Average Capacity 9 | 7 9 10 10 Most Carried 10 | 4 10 10 10 Average Carried 8 | 2 7 9 8 Final Capacity 10 | 8 10 10 10 Final Carried 10 | 4 8 10 6 Class Distribution -------------------- 52% | Scavenger-Mutant 47% | Mutant Dominant Class ---------------- Mutant | -10/Materials Scavenger-Mutant | -10/Mines Scavenger-Mutant | -9/Materials Resources | -11 -10 -10 -9 ----------- Run | Yrd Mat Min Mat Matter Collected 983 | 216 239 158 370 Remotely . | . . . . Salvage Created 1312 | . 337 300 675 Parts 84 | . 24 30 30 Haulers Intercepted . | . . . . Recyclers Shooed . | . . . . Parts Field Recycled . | . . . . Retrieved Matter . | . . . . Parts Self-Destructed . | . . . . Prevented . | . . . . Parts Restored . | . . . . Kills | -11 -10 -10 -9 ------- Run | Yrd Mat Min Mat Combat Hostiles Destroyed 44 | . 11 13 20 Guns 38 | . 11 13 14 Cannons 5 | . . . 5 AOE 1 | . . . 1 Classes Destroyed 5 | . 3 1 1 Builder 1 | . . 1 . Recycler 2 | . 1 . 1 Swarmer 21 | . 6 9 6 Grunt 21 | . 5 4 12 Sentry 2 | . . . 2 Best Kill Streak 7 | . 3 4 7 Combat Bots Only 7 | . 3 3 7 Max Kills in Single Turn 2 | . 1 2 1 Gunslinging 1 | . . 1 . Exploded 1 | . . . 1 Melee . | . . . . Uniques/NPCs Destroyed . | . . . . Combat | -11 -10 -10 -9 -------- Run | Yrd Mat Min Mat Hostile Shots Fired 304 | . 49 59 196 Missed 87 | . 18 17 52 Hits 217 | . 31 42 144 Projectile 217 | . 31 42 144 Critical Strikes 5 | . . . 5 Part Disruptions 1 | . 1 . . Damage Taken 2554 | . 389 415 1750 Core 599 | . 70 117 412 Absorbed by Shields . | . . . . Regen/Repaired (Parts) 35 | . 35 . . Core Remaining (%) 62 | 100 . 25 . Volleys Fired 130 | . 27 32 71 Largest 2 | . 2 2 2 Hottest 89 | . 40 40 89 Shots Fired 253 | . 54 65 134 Gun 225 | . 54 65 106 Cannon 25 | . . . 25 Launcher 3 | . . . 3 Special . | . . . . Kinetic 227 | . 54 65 108 Thermal 23 | . . . 23 Explosive 3 | . . . 3 Electromagnetic . | . . . . Robot Hit Streak 14 | . 7 9 14 Robot Miss Streak 4 | . 3 3 4 Penetration Max . | . . . . Secondary Targets 4 | . 1 2 1 Max Gunslinging Chain 1 | . 1 1 1 Shots Hit Robots 166 | . 34 41 91 Core Hits 79 | . 20 22 37 Critical Kills 1 | . . . 1 Critical Parts Destroyed . | . . . . Critical Strikes 4 | . . . 4 Burn 3 | . . . 3 Destroy 1 | . . . 1 Melee Attacks . | . . . . Impact . | . . . . Slashing . | . . . . Piercing . | . . . . Sneak Attacks . | . . . . Combat Hostiles . | . . . . Follow-up Attacks . | . . . . Damage Inflicted 1943 | . 424 327 1192 Guns 1485 | . 424 327 734 Cannons 300 | . . . 300 Explosions 157 | . . . 157 Melee . | . . . . Ramming 1 | . . . 1 Kinetic 1513 | . 424 327 762 Thermal 272 | . . . 272 Explosive 157 | . . . 157 Electromagnetic . | . . . . Impact . | . . . . Slashing . | . . . . Piercing . | . . . . Highest Corruption 1 | . 1 1 . Average Corruption 1 | . 1 1 . Corruption Purged . | . . . . Corruption Blocked . | . . . . Effects 12 | . 4 8 . Message Errors 6 | . 4 2 . Matter Fused 3 | . . 3 . Heat Flow Errors 1 | . . 1 . Energy Discharges 1 | . . 1 . Misfires 1 | . . 1 . Overload Shots . | . . . . Overflow Damage 25 | . . . 25 Projectiles 5 | . . . 5 Explosions 20 | . . . 20 Melee . | . . . . Knockbacks 6 | . . . 6 Impact . | . . . . Kinetic 5 | . . . 5 Secondary 1 | . . . 1 Self-Inflicted Damage 36 | . . . 36 Shots 2 | . . . 2 Rammed 1 | . . . 1 Targets Rammed 3 | . 1 . 2 Kicked 2 | . 1 . 1 Crushed . | . . . . Highest Temperature 384 | . 6 132 384 Average Temperature 97 | . 4 62 110 Received Heat Transfer 861 | . 72 135 654 Effects 7 | . . . 7 Shutdowns 2 | . . . 2 Energy Bleed 1 | . . . 1 Interference 4 | . . . 4 Siege Activations . | . . . . Martial Activations . | . . . . Shielding Activations . | . . . . Robots Disrupted . | . . . . Combat Hostiles . | . . . . Robots Corrupted . | . . . . Combat Hostiles . | . . . . Parts Fried . | . . . . Impact Corruptions . | . . . . Robots Melted . | . . . . Combat Hostiles . | . . . . Parts Melted 2 | . . . 2 Heat Transferred 925 | . . . 925 Parts Sabotaged . | . . . . Parts Stolen . | . . . . Parts Stripped . | . . . . Power Chain Reactions . | . . . . Alert | -11 -10 -10 -9 ------- Run | Yrd Mat Min Mat Maximum Alert Level 1 | . . . 1 Low Security (%) 86 | 100 100 100 68 Level 1 13 | . . . 31 Level 2 . | . . . . Level 3 . | . . . . Level 4 . | . . . . Level 5 . | . . . . High Security . | . . . . Max Security . | . . . . Peak Influence 325 | . 128 140 325 Initial 15 | . . 15 5 Average 73 | . 34 70 108 Influence Increases 1166 | . 315 305 546 Destroy 0b10 Robot/C 880 | . 220 260 400 Destroy 0b10 Robot/NC 15 | . 5 5 5 Destroy Leader 180 | . 50 40 90 Successful Hack 8 | . 7 . 1 Destroy Structure 23 | . 3 . 20 Partial Spotted 15 | . 15 . . Lose Combat Pursuer 45 | . 15 . 30 Influence Decreases 929 | . 276 328 325 Entered New Map 35 | . . 24 11 Time Decay 754 | . 256 294 204 Lost Part 140 | . 20 10 110 Squads Dispatched 6 | . 2 . 4 Investigation . | . . . . Extermination . | . . . . Reinforcement 6 | . 2 . 4 Assault . | . . . . Garrison . | . . . . Intercept . | . . . . Searches Triggered . | . . . . Construction Impeded 1 | . . . 1 Haulers Reinforced . | . . . . Active Scanning Responses . | . . . . Cargo Convoy Interrupts . | . . . . Stealth | -11 -10 -10 -9 --------- Run | Yrd Mat Min Mat Distress Signals 4 | . 3 . 1 Communications Jammed . | . . . . Distress Signals . | . . . . Times Spotted 65 | . 21 13 31 Peak Tracking Total 11 | . 6 3 11 Tactical Retreats 2 | . 1 . 1 Traps | -11 -10 -10 -9 ------- Run | Yrd Mat Min Mat Traps Triggered 2 | . 2 . . Indirectly . | . . . . Trap Hack Attempts . | . . . . Triggered . | . . . . Disarmed . | . . . . Reprogrammed . | . . . . Reused . | . . . . Traps Extracted . | . . . . Installed . | . . . . Triggered . | . . . . Machines | -11 -10 -10 -9 ---------- Run | Yrd Mat Min Mat Machines Disabled . | . . . . Max in Single Turn . | . . . . Machines Repaired . | . . . . Machines Dismantled . | . . . . Machines Sabotaged . | . . . . Overloaded Fab Kills . | . . . . Hacking | -11 -10 -10 -9 --------- Run | Yrd Mat Min Mat Machines Accessed 8 | . 4 . 4 Terminals 4 | . 2 . 2 Fabricators . | . . . . Repair Stations 1 | . 1 . . Recycling Units 2 | . 1 . 1 Scanalyzers 1 | . . . 1 Garrison Access . | . . . . Total Hacks 20 | . 10 . 10 Successful 12 | . 6 . 6 Failed 7 | . 4 . 3 Catastrophic . | . . . . Database Lockouts 1 | . . . 1 Manual . | . . . . Terminals 9 | . 5 . 4 Fabricators . | . . . . Repair Stations 3 | . 3 . . Recycling Units 6 | . 2 . 4 Scanalyzers 2 | . . . 2 Garrison Access . | . . . . Terminal Hacks 4 | . 3 . 1 Prototype ID Bank 1 | . 1 . . Branch Access Points 1 | . 1 . . Alert Level 1 | . . . 1 Hauler Manifests 1 | . 1 . . Fabricator Hacks . | . . . . Repair Station Hacks 2 | . 2 . . Scan Component 1 | . 1 . . Repair 1 | . 1 . . Recycling Unit Hacks 5 | . 1 . 4 Recycle Component 1 | . . . 1 Process 2 | . . . 2 Report Inventory 2 | . 1 . 1 Scanalyzer 1 | . . . 1 Retrieve Study 1 | . . . 1 Garrison Access Hacks . | . . . . Unauthorized Hacks . | . . . . Terminals . | . . . . Fabricators . | . . . . Repair Stations . | . . . . Recycling Units . | . . . . Scanalyzers . | . . . . Garrison Access . | . . . . Data Cores Recovered . | . . . . Used . | . . . . Hacking Detections 7 | . 3 . 4 Full Trace Events . | . . . . Feedback Events . | . . . . Feedback Blocked . | . . . . Robot Schematics Acquired . | . . . . Robots Built . | . . . . Authchips . | . . . . Time . | . . . . Total Robot Build Rating . | . . . . Part Schematics Acquired . | . . . . Parts Built . | . . . . Authchips . | . . . . Time . | . . . . Total Part Build Rating . | . . . . Part Studies Acquired 1 | . . . 1 Parts Repaired 1 | . 1 . . Time 26 | . 26 . . Parts Recycled 1 | . . . 1 Recycled Matter 30 | . . . 30 Retrieved Matter . | . . . . Retrieved Components . | . . . . Parts Scanalyzed . | . . . . Part Schematics Acquired . | . . . . Parts Damaged . | . . . . Bothacking | -11 -10 -10 -9 ------------ Run | Yrd Mat Min Mat Used RIF Installer . | . . . . Robots Hacked . | . . . . Non-combat . | . . . . Combat . | . . . . Robot Hacks Applied . | . . . . Relay Couplers Released . | . . . . Fabnet Peak Effective % . | . . . . Robots Rewired . | . . . . Allies Hacked . | . . . . Hacks Repelled . | . . . . Allies | -11 -10 -10 -9 -------- Run | Yrd Mat Min Mat Total Allies . | . . . . Largest Group . | . . . . Highest-Rated Group . | . . . . Highest-Rated Ally . | . . . . Total Orders . | . . . . Ally Attacks . | . . . . Total Damage . | . . . . Kills . | . . . . Allies Corrupted . | . . . . Allies Melted . | . . . . Intel | -11 -10 -10 -9 ------- Run | Yrd Mat Min Mat Active Infowar (turns) 553 | . . . 553 Sensors 70 | . . . 70 Terrain 483 | . . . 483 Robot Analysis Total . | . . . . Derelict Logs Recovered 2 | . . 2 . Drone Launches . | . . . . Drone Recoveries . | . . . . Exploration | -11 -10 -10 -9 ------------- Run | Yrd Mat Min Mat Turns Passed 2530 | 57 783 659 1031 Spaces Moved 1051 | 41 317 314 379 Core 12 | 8 . . 4 Treads 75 | . . . 75 Legs 964 | 33 317 314 300 Wheels . | . . . . Hover . | . . . . Flight . | . . . . Fastest Speed 50 | 50 120 120 105 Average Speed 132 | 108 141 120 136 Slowest Speed 300 | 120 190 190 300 Overloaded Moves . | . . . . Propulsion Burnouts . | . . . . Robots Hopped . | . . . . Potential Cave-ins . | . . . . Cave-ins Triggered . | . . . . Exploration Rate (%) 36 | 3 53 51 37 Regions Visited 3 Branch Regions 1 Pre-discovered Areas . | . . . . Known Exits Taken 1 | . 1 . . Unknown Exits Taken 2 | 1 . 1 . Scrap Searched . | . . . . Spaces Dug . | . . . . Terrain Destroyed 40 | . . . 40 Melee . | . . . . Projectile 4 | . . . 4 AOE 36 | . . . 36 Terrain Rammed . | . . . . Walls Destroyed . | . . . . Machines Disabled . | . . . . Actions | -11 -10 -10 -9 --------- Run | Yrd Mat Min Mat Total 1967 | 50 601 544 772 Wait 695 | . 238 181 276 Move 1048 | 40 316 313 379 Hop . | . . . . Pick Up 22 | 4 7 3 8 Fast Attach 14 | 6 4 1 3 Attach 6 | . 1 . 5 Detach 1 | . . . 1 Swap 25 | . 2 7 16 Drop 23 | . 5 7 11 Fire 130 | . 27 32 71 Melee . | . . . . Ram . | . . . . Kick 2 | . 1 . 1 Crush 1 | . . . 1 Escape Stasis . | . . . . Rewire . | . . . . Trap . | . . . . Miscellaneous . | . . . . Route ------- -11/Scrapyard -10/Materials (discovered 3 exits: *Mat / *Min x2) -10/Mines -9/Materials History --------- Turn | Location | Event 10 | -11/Scrapyard | Discovered new exit (range 15) 58 | -11/Scrapyard | Entered Materials 316 | -10/Materials | Build established: Mutant 369 | -10/Materials | Discovered new exit (range 8) 419 | -10/Materials | Discovered new exit (range 15) 451 | -10/Materials | Identified exit to Mines 467 | -10/Materials | Discovered new exit (range 11) 577 | -10/Materials | Repaired Aluminum Leg 841 | -10/Materials | Entered Mines 889 | -10/Mines | Learned 4 Materials zone layouts 913 | -10/Mines | Core integrity fell below 50% 987 | -10/Mines | Learned Materials garrison access intel 1218 | -10/Mines | Excavation squad dispatched 1218 | -10/Mines | A large section of the Mines collapsed 1235 | -10/Mines | Build established: Scavenger-Mutant 1487 | -10/Mines | Discovered new exit (range 11) 1500 | -10/Mines | Entered Materials 1500 | -9/Materials | Evolved 2 slots: Utility x2 1537 | -9/Materials | Central database locked down 2324 | -9/Materials | Lost 4 parts (1p1u2w) 2335 | -9/Materials | Core integrity fell below 50% 2352 | -9/Materials | Destroyed 7 combat bots 2523 | -9/Materials | Core integrity fell below 20% 2531 | -9/Materials | Destroyed by Y-45 Defender with Beam Rifle Last Messages --------------- Current Alert Level: 1-P Connecting with Terminal... K-01 Serf cleans the Terminal. Slammed into A-02 Transporter. Acquired Imp. Sensor Array. Dropped Lgt. Assault Rifle. Dropped Hvy. Assault Rifle. K-01 Serf cleans the Terminal. Acquired EM Pulse Cannon. ALERT: Hostiles spotted, dispatching reinforcements to Terminal M010. K-01 Serf cleans the Terminal. Processing Tank disabled. K-01 Serf collects debris. EM Pulse Cannon destroyed. Lgt. Treads destroyed. Imp. Sensor Array destroyed. Critical hit (Burn: +37). EM Pulse Cannon destroyed. K-01 Serf cleans the Matter Pump. Map ----- +----------------------------------------------------+ | ?????????????????????# T + """"" ## # | | ????????????########?# # """"" ## # | | ????????????# #?# ##### # """"" ## # | | ????????????# ###########?## ## """"" ## # | | ????????????# # #??# ## ## | | ?????????#### # #??# ############ | | ?????????"""# # #??# #??????????# | | ????????? "# # #?## ##?????????# | | ????????? "##/######+##+####### #?????????# | | ????????? #?????????# | | ??????????????????????????????????T #?????????# | | ?????????????????????????????????? #???####### | | ?????????????????????????????????? #???# | | ??????????????????????????????????####???# | | ?????????????????????????????????????????# | | ??????????????????????????????????######## | | ?????????????????????????????????? | | ?????????????????????????????????? | | ?????????????????????????????????? "" | | ???????##########????????????????? """ "" | | ???????? #????????????????? """ "" | | ???????# """ #????????????????? """ "" | | ???????# """ #?????########### k "" | | ???????# """ ####### u | | ???????# """ /k Y // | | ???????# " " ####### @ / | | ???????# #???# #####+##### # | | ???????# #???# #??? # ##### | | ???????# ? #???# #??? + #???# | | ?????#######+####???# #??? ######???# | | ?????#[] ? #????# #??? #????????# | | ?????#[] T" #????# #??? #????????# | | ?????#!! " #????# g #??? #????????? | | ?????#[[ #????# g #??? #????????? | | ?????#// #????+ g ??? #????????? | | ?????#// ### ### # ###### ???????????????? | | ?????#####?#%#?# # #????###???????????????? | | ???????????# #?# ### ###??????????????????????? | | ???????????# #?# #?# #????????????????????????? | | ?????????### ########?# #????????????????????????? | | ########## #??????# #???######???????????????? | | "" #??????# #???# ???????????????? | | T #????### ###?# """???????????????? | | #????# #?# """"???????????????? | | ########## #????# ### """"???????????????? | | ????????####+#####??# + """"???????????????? | | ????????# #??# ### """???????????????? | | ????????# """ #??# #?# ???????????????? | | ????????# """ #??###+##### ???????????????? | | ????????# """ #??# ## ???????????????? | +----------------------------------------------------+ Best States ------------- Heat Dissipation 28 Energy Generation 12 Energy Capacity 265 Matter Stores 300 Matter Capacity 300 Sight Range 16 Robot Scan Range 15 Terrain Scan Range 16 Terrain Scan Density 85 Armor Coverage 150 Evasion (%) 55 Targeting Accuracy 5 Recoil Reduction 1 Item Schematics ----------------- None Robot Schematics ------------------ None Fabricated ------------ Nothing Repaired ---------- Aluminum Leg | 61% | -10/Materials Studied --------- Aluminum Leg | -9/Materials | Hacked Alien Tech Used ----------------- None Achievements -------------- None Challenges ------------ None Game ------ Seed HypertargetingAdvancedPit Manual? 0 Play Time 00:23:10 Cumulative 10.2 hours Start 2026.08.03 @ 12:45:28 End 2026.08.03 @ 13:06:49 Sessions 1 Manual Loads 0 Difficulty Rogue Special Mode None Game No. 16 Rogue 12 Adventurer 4 Explorer 0 Win Type - Total 0 Types 0/0/0/0/0/0/0/0/0/0 Lore% 2 Gallery% 12 Achievement% 10 Wizard Run 0 Options --------- Layout 1 ASCII 0 Keyboard 0 Movement Numpad Keybinds 0 Fullscreen 1 Font 32/SmallcapsGlow Map View 50x35 Zoom Use 0% Tactical HUD 0 Map Filters NONE Filters NONE Steam 1 RUN: f1a5aaad-f309-4f3c-82b6-2c520a46c2ea